[Event "Early-Titled-Tuesday-Blitz-May-28-2024"]
[Site "Chess.com"]
[Date "2024.05.28"]
[Round "3"]
[White "PattyCastillo"]
[Black "ZachHKL"]
[Result "0-1"]
[WhiteElo "1829"]
[BlackElo "2342"]
[TimeControl "180+1"]
[EndTime "8:27:06 PDT"]
[Termination "ZachHKL won by resignation"]

1. d4 {[%clk 0:02:59]} 1... d5 {[%clk 0:02:56.1]} 2. Nf3 {[%clk 0:02:59.1]} 2...
c6 {[%clk 0:02:56.4]} 3. e3 {[%clk 0:02:58.6]} 3... Nf6 {[%clk 0:02:56.7]} 4.
Bd3 {[%clk 0:02:58.4]} 4... Bg4 {[%clk 0:02:54.5]} 5. Nbd2 {[%clk 0:02:58.3]}
5... e6 {[%clk 0:02:54.9]} 6. b3 {[%clk 0:02:58.3]} 6... Nbd7 {[%clk 0:02:54.8]}
7. Bb2 {[%clk 0:02:57.9]} 7... Bd6 {[%clk 0:02:55.4]} 8. O-O {[%clk 0:02:57.9]}
8... O-O {[%clk 0:02:56]} 9. Qb1 {[%clk 0:02:53.3]} 9... Re8 {[%clk 0:02:51.9]}
10. Ne5 {[%clk 0:02:52.3]} 10... Bh5 {[%clk 0:02:47.8]} 11. f4 {[%clk 0:02:52]}
11... Bg6 {[%clk 0:02:46.9]} 12. Nxg6 {[%clk 0:02:35.7]} 12... hxg6 {[%clk
0:02:47.8]} 13. c4 {[%clk 0:02:34.6]} 13... Ng4 {[%clk 0:02:45.8]} 14. Qe1
{[%clk 0:02:26.9]} 14... f5 {[%clk 0:02:40.4]} 15. h3 {[%clk 0:02:06.6]} 15...
Ngf6 {[%clk 0:02:36.3]} 16. Rd1 {[%clk 0:02:00.1]} 16... Ne4 {[%clk 0:02:34.8]}
17. Nf3 {[%clk 0:01:54]} 17... Qf6 {[%clk 0:02:25.6]} 18. Ne5 {[%clk 0:01:53.2]}
18... Bxe5 {[%clk 0:02:20.2]} 19. fxe5 {[%clk 0:01:51.5]} 19... Qg5 {[%clk
0:02:19.9]} 20. Rf4 {[%clk 0:01:45]} 20... a5 {[%clk 0:02:15.5]} 21. Bxe4 {[%clk
0:01:38.7]} 21... fxe4 {[%clk 0:02:12.9]} 22. Qf2 {[%clk 0:01:37.2]} 22... Rf8
{[%clk 0:02:12.9]} 23. Rf1 {[%clk 0:01:36.9]} 23... Rf5 {[%clk 0:02:12.8]} 24.
Ba3 {[%clk 0:01:28.2]} 24... Rxf4 {[%clk 0:01:52.5]} 25. Qxf4 {[%clk 0:01:25.6]}
25... Qxf4 {[%clk 0:01:50.9]} 26. Rxf4 {[%clk 0:01:24.7]} 26... a4 {[%clk
0:01:51.3]} 27. Bd6 {[%clk 0:01:20.7]} 27... axb3 {[%clk 0:01:50.5]} 28. axb3
{[%clk 0:01:21.1]} 28... Ra1+ {[%clk 0:01:51.1]} 29. Kh2 {[%clk 0:01:18.7]}
29... Rb1 {[%clk 0:01:48.8]} 30. b4 {[%clk 0:01:17.2]} 30... dxc4 {[%clk
0:01:49]} 31. Rf2 {[%clk 0:01:09.8]} 31... Rc1 {[%clk 0:01:45.4]} 32. Kg3 {[%clk
0:01:06.3]} 32... Nb6 {[%clk 0:01:45.4]} 33. Kf4 {[%clk 0:01:02]} 33... Nd5+
{[%clk 0:01:40.3]} 34. Kxe4 {[%clk 0:00:59.1]} 34... Rd1 {[%clk 0:01:36.6]} 35.
Rc2 {[%clk 0:00:48.5]} 35... b5 {[%clk 0:01:33.7]} 36. Re2 {[%clk 0:00:44.3]}
36... Nc3+ {[%clk 0:01:33.1]} 37. Kf3 {[%clk 0:00:44.1]} 37... Nxe2 {[%clk
0:01:34]} 38. Kxe2 {[%clk 0:00:44.2]} 38... Rg1 {[%clk 0:01:32.9]} 39. Kf3
{[%clk 0:00:44]} 39... c3 {[%clk 0:01:33]} 0-1

[Event "Early-Titled-Tuesday-Blitz-May-28-2024"]
[Site "Chess.com"]
[Date "2024.05.28"]
[Round "3"]
[White "KorolDimitriy75"]
[Black "Aragon"]
[Result "0-1"]
[WhiteElo "2370"]
[BlackElo "2108"]
[TimeControl "180+1"]
[EndTime "8:27:12 PDT"]
[Termination "Aragon won by checkmate"]

1. d4 {[%clk 0:03:00.9]} 1... b5 {[%clk 0:02:55.6]} 2. e4 {[%clk 0:02:59.8]}
2... a6 {[%clk 0:02:55.3]} 3. Bd3 {[%clk 0:02:58.3]} 3... e6 {[%clk 0:02:53.6]}
4. Nf3 {[%clk 0:02:57]} 4... Bb7 {[%clk 0:02:53]} 5. Qe2 {[%clk 0:02:56.9]} 5...
Nf6 {[%clk 0:02:51.4]} 6. O-O {[%clk 0:02:56.3]} 6... Be7 {[%clk 0:02:50.1]} 7.
a4 {[%clk 0:02:54.5]} 7... b4 {[%clk 0:02:49.1]} 8. c3 {[%clk 0:02:53.5]} 8...
a5 {[%clk 0:02:48.4]} 9. Re1 {[%clk 0:02:48.4]} 9... d5 {[%clk 0:02:44.9]} 10.
Nbd2 {[%clk 0:02:39.3]} 10... dxe4 {[%clk 0:02:43.5]} 11. Nxe4 {[%clk
0:02:40.2]} 11... Nxe4 {[%clk 0:02:43.6]} 12. Bxe4 {[%clk 0:02:41.1]} 12... Bxe4
{[%clk 0:02:43.1]} 13. Qxe4 {[%clk 0:02:42]} 13... Qd5 {[%clk 0:02:42.9]} 14.
Qg4 {[%clk 0:02:41]} 14... Bf6 {[%clk 0:02:27.8]} 15. Bf4 {[%clk 0:02:34.8]}
15... Nd7 {[%clk 0:02:12.4]} 16. Rac1 {[%clk 0:02:14.8]} 16... c5 {[%clk
0:01:53.1]} 17. c4 {[%clk 0:02:12]} 17... Qb7 {[%clk 0:01:36.5]} 18. d5 {[%clk
0:02:10.7]} 18... O-O {[%clk 0:01:29.6]} 19. dxe6 {[%clk 0:02:06.3]} 19... fxe6
{[%clk 0:01:29.5]} 20. Qxe6+ {[%clk 0:02:07.2]} 20... Rf7 {[%clk 0:01:23.6]} 21.
b3 {[%clk 0:01:40.9]} 21... Bc3 {[%clk 0:01:15.7]} 22. Ng5 {[%clk 0:01:37.7]}
22... Nf8 {[%clk 0:01:12.8]} 23. Nxf7 {[%clk 0:01:25.6]} 23... Nxe6 {[%clk
0:01:09]} 24. Nd6 {[%clk 0:01:21.9]} 24... Qd7 {[%clk 0:00:56.8]} 25. Bg3 {[%clk
0:01:06.4]} 25... Bxe1 {[%clk 0:00:55.2]} 26. Rxe1 {[%clk 0:01:06.3]} 26... Nd4
{[%clk 0:00:54.9]} 27. Re5 {[%clk 0:00:48.7]} 27... Qxd6 {[%clk 0:00:44]} 28.
Re8+ {[%clk 0:00:48.1]} 28... Rxe8 {[%clk 0:00:43.2]} 29. Bxd6 {[%clk 0:00:49]}
29... Re1# {[%clk 0:00:43]} 0-1

[Event "Early-Titled-Tuesday-Blitz-May-28-2024"]
[Site "Chess.com"]
[Date "2024.05.28"]
[Round "3"]
[White "Bykov_Egor"]
[Black "Keranke"]
[Result "0-1"]
[WhiteElo "2663"]
[BlackElo "2902"]
[TimeControl "180+1"]
[EndTime "8:27:14 PDT"]
[Termination "Keranke won by checkmate"]

1. e4 {[%clk 0:03:00.9]} 1... g6 {[%clk 0:02:54.7]} 2. d4 {[%clk 0:02:58.3]}
2... Bg7 {[%clk 0:02:55.2]} 3. Nc3 {[%clk 0:02:57.7]} 3... d6 {[%clk 0:02:55.9]}
4. Nf3 {[%clk 0:02:52.3]} 4... a6 {[%clk 0:02:56.4]} 5. Be3 {[%clk 0:02:47.9]}
5... b5 {[%clk 0:02:55.7]} 6. Bd3 {[%clk 0:02:34.6]} 6... Nd7 {[%clk 0:02:51.7]}
7. a4 {[%clk 0:02:32.3]} 7... b4 {[%clk 0:02:51.3]} 8. Ne2 {[%clk 0:02:27]} 8...
Bb7 {[%clk 0:02:50.9]} 9. h4 {[%clk 0:02:22.8]} 9... Ngf6 {[%clk 0:02:49.6]} 10.
Ng3 {[%clk 0:02:21.7]} 10... Ng4 {[%clk 0:02:48.5]} 11. Bd2 {[%clk 0:02:10.5]}
11... c5 {[%clk 0:02:48.7]} 12. h5 {[%clk 0:02:06.2]} 12... cxd4 {[%clk
0:02:46.8]} 13. Bxb4 {[%clk 0:01:40.7]} 13... Nc5 {[%clk 0:02:45.6]} 14. a5
{[%clk 0:01:06.2]} 14... Rb8 {[%clk 0:02:40.3]} 15. Bxc5 {[%clk 0:01:01.2]}
15... dxc5 {[%clk 0:02:41.2]} 16. Bc4 {[%clk 0:00:59.8]} 16... O-O {[%clk
0:02:36.1]} 17. Qd2 {[%clk 0:00:44.3]} 17... e6 {[%clk 0:02:31.7]} 18. Qf4
{[%clk 0:00:40]} 18... Nf6 {[%clk 0:02:27.2]} 19. hxg6 {[%clk 0:00:39.5]} 19...
hxg6 {[%clk 0:02:26.7]} 20. Qh4 {[%clk 0:00:31.5]} 20... Re8 {[%clk 0:02:25.4]}
21. Ng5 {[%clk 0:00:20.5]} 21... Qc7 {[%clk 0:02:13.3]} 22. f4 {[%clk
0:00:19.7]} 22... Bc6 {[%clk 0:01:58]} 23. e5 {[%clk 0:00:19.4]} 23... Nd5
{[%clk 0:01:53.1]} 24. Qh7+ {[%clk 0:00:18.8]} 24... Kf8 {[%clk 0:01:53.5]} 25.
N3e4 {[%clk 0:00:14.6]} 25... Nxf4 {[%clk 0:01:48.6]} 26. O-O {[%clk 0:00:13.5]}
26... Qxe5 {[%clk 0:01:47.4]} 27. Rxf4 {[%clk 0:00:12.7]} 27... Qxf4 {[%clk
0:01:46.1]} 28. Rf1 {[%clk 0:00:13.4]} 28... Qe3+ {[%clk 0:01:46.5]} 29. Kh1
{[%clk 0:00:13.8]} 29... Rb7 {[%clk 0:01:33.8]} 30. Nxc5 {[%clk 0:00:12.1]}
30... Qxg5 {[%clk 0:01:32]} 31. Nxb7 {[%clk 0:00:06.4]} 31... Qxg2# {[%clk
0:01:31.7]} 0-1

[Event "Early-Titled-Tuesday-Blitz-May-28-2024"]
[Site "Chess.com"]
[Date "2024.05.28"]
[Round "3"]
[White "UK_23"]
[Black "Pragmatist237"]
[Result "1/2-1/2"]
[WhiteElo "2409"]
[BlackElo "2215"]
[TimeControl "180+1"]
[EndTime "8:27:14 PDT"]
[Termination "Game drawn by repetition"]

1. e4 {[%clk 0:02:56.2]} 1... b6 {[%clk 0:02:58.3]} 2. d4 {[%clk 0:02:55.8]}
2... Bb7 {[%clk 0:02:58.3]} 3. Nd2 {[%clk 0:02:56.5]} 3... e6 {[%clk 0:02:58.6]}
4. c3 {[%clk 0:02:56.6]} 4... d5 {[%clk 0:02:54.6]} 5. e5 {[%clk 0:02:56.5]}
5... c5 {[%clk 0:02:54.6]} 6. a3 {[%clk 0:02:56.3]} 6... c4 {[%clk 0:02:53.1]}
7. f4 {[%clk 0:02:56]} 7... Nc6 {[%clk 0:02:49.9]} 8. Ndf3 {[%clk 0:02:55.6]}
8... Nh6 {[%clk 0:02:28.5]} 9. Ne2 {[%clk 0:02:52.7]} 9... Be7 {[%clk
0:02:27.6]} 10. g3 {[%clk 0:02:43.8]} 10... f6 {[%clk 0:02:21.7]} 11. h4 {[%clk
0:02:43.5]} 11... O-O {[%clk 0:02:14.4]} 12. Bh3 {[%clk 0:02:39.8]} 12... Bc8
{[%clk 0:02:08.6]} 13. O-O {[%clk 0:02:39.3]} 13... fxe5 {[%clk 0:01:40.7]} 14.
Nxe5 {[%clk 0:02:29.7]} 14... Nxe5 {[%clk 0:01:33.9]} 15. fxe5 {[%clk
0:02:30.6]} 15... Nf5 {[%clk 0:01:33.9]} 16. Bxf5 {[%clk 0:02:14.7]} 16... exf5
{[%clk 0:01:33.8]} 17. Nf4 {[%clk 0:02:14.5]} 17... Re8 {[%clk 0:00:58.1]} 18.
Qf3 {[%clk 0:02:14.1]} 18... Bb7 {[%clk 0:00:58.1]} 19. Ne6 {[%clk 0:02:10.8]}
19... Qd7 {[%clk 0:00:58.3]} 20. Qxf5 {[%clk 0:02:10.8]} 20... Bxh4 {[%clk
0:00:26.2]} 21. gxh4 {[%clk 0:01:58.4]} 21... Qxe6 {[%clk 0:00:26.3]} 22. Bg5
{[%clk 0:01:48.7]} 22... Qxf5 {[%clk 0:00:25.5]} 23. Rxf5 {[%clk 0:01:48.6]}
23... Rf8 {[%clk 0:00:26]} 24. Raf1 {[%clk 0:01:46]} 24... Rxf5 {[%clk
0:00:26.2]} 25. Rxf5 {[%clk 0:01:46.9]} 25... Rf8 {[%clk 0:00:26.6]} 26. Rxf8+
{[%clk 0:01:45.3]} 26... Kxf8 {[%clk 0:00:27.5]} 27. Kf2 {[%clk 0:01:42.8]}
27... Bc8 {[%clk 0:00:27.7]} 28. Bd8 {[%clk 0:01:41.3]} 28... Be6 {[%clk
0:00:27.2]} 29. Kg3 {[%clk 0:01:41.2]} 29... b5 {[%clk 0:00:26.6]} 30. Kf4
{[%clk 0:01:40.3]} 30... a6 {[%clk 0:00:26.8]} 31. Kg5 {[%clk 0:01:40.7]} 31...
Kf7 {[%clk 0:00:26.4]} 32. h5 {[%clk 0:01:40.2]} 32... h6+ {[%clk 0:00:26.5]}
33. Kf4 {[%clk 0:01:34.5]} 33... Ke8 {[%clk 0:00:24.7]} 34. Bb6 {[%clk
0:01:34.1]} 34... Kf7 {[%clk 0:00:25]} 35. Bc5 {[%clk 0:01:34.5]} 35... Ke8
{[%clk 0:00:25.2]} 36. Bd6 {[%clk 0:01:34.7]} 36... Kf7 {[%clk 0:00:25.5]} 37.
Bc5 {[%clk 0:01:30.6]} 37... Ke8 {[%clk 0:00:25.8]} 38. Bd6 {[%clk 0:01:30.6]}
38... Kf7 {[%clk 0:00:26.2]} 39. Bc5 {[%clk 0:01:31.1]} 1/2-1/2

[Event "Early-Titled-Tuesday-Blitz-May-28-2024"]
[Site "Chess.com"]
[Date "2024.05.28"]
[Round "3"]
[White "unbreakablepawn35"]
[Black "Thjop"]
[Result "0-1"]
[WhiteElo "2387"]
[BlackElo "2604"]
[TimeControl "180+1"]
[EndTime "8:27:16 PDT"]
[Termination "Thjop won by resignation"]

1. c4 {[%clk 0:03:00.9]} 1... Nf6 {[%clk 0:02:59.6]} 2. Nc3 {[%clk 0:03:01.1]}
2... g6 {[%clk 0:03:00.5]} 3. e4 {[%clk 0:03:00.4]} 3... d6 {[%clk 0:03:01.1]}
4. g3 {[%clk 0:03:00.4]} 4... Bg7 {[%clk 0:03:02]} 5. Bg2 {[%clk 0:03:00.8]}
5... O-O {[%clk 0:03:02.8]} 6. Nge2 {[%clk 0:03:01.2]} 6... e5 {[%clk
0:03:03.7]} 7. O-O {[%clk 0:03:01.1]} 7... Nc6 {[%clk 0:03:04.5]} 8. d3 {[%clk
0:03:00.9]} 8... a5 {[%clk 0:03:05]} 9. h3 {[%clk 0:03:00.9]} 9... Nd7 {[%clk
0:03:05.4]} 10. Kh2 {[%clk 0:03:01.2]} 10... Nc5 {[%clk 0:03:06]} 11. f4 {[%clk
0:02:56.5]} 11... Nd4 {[%clk 0:03:05.6]} 12. Nxd4 {[%clk 0:02:55.1]} 12... exd4
{[%clk 0:03:05.9]} 13. Ne2 {[%clk 0:02:55.4]} 13... f5 {[%clk 0:03:05.6]} 14.
Rb1 {[%clk 0:02:34.7]} 14... Qe7 {[%clk 0:02:46.7]} 15. b3 {[%clk 0:02:14]}
15... fxe4 {[%clk 0:02:46]} 16. dxe4 {[%clk 0:02:14.6]} 16... Nxe4 {[%clk
0:02:46.2]} 17. Nxd4 {[%clk 0:02:12.7]} 17... Nc3 {[%clk 0:02:46.2]} 18. Qd3
{[%clk 0:02:00.5]} 18... Nxb1 {[%clk 0:02:44.6]} 19. Bb2 {[%clk 0:02:01.1]}
19... c6 {[%clk 0:02:27.9]} 20. Rxb1 {[%clk 0:01:59.2]} 20... Bf5 {[%clk
0:02:26.3]} 21. Nxf5 {[%clk 0:01:58.2]} 21... gxf5 {[%clk 0:02:23.1]} 22. Bxg7
{[%clk 0:01:57.8]} 22... Kxg7 {[%clk 0:02:24]} 23. Rd1 {[%clk 0:01:57.2]} 23...
Rf6 {[%clk 0:02:20.5]} 24. Qd4 {[%clk 0:01:56.5]} 24... a4 {[%clk 0:02:18.1]}
25. b4 {[%clk 0:01:51.5]} 25... Re8 {[%clk 0:02:16.5]} 26. Rd2 {[%clk
0:01:40.9]} 26... Qe3 {[%clk 0:02:14.6]} 27. Qb2 {[%clk 0:01:37.6]} 27... a3
{[%clk 0:02:14.8]} 28. Qc2 {[%clk 0:01:36.7]} 28... Rg6 {[%clk 0:02:12.6]} 29.
Rd3 {[%clk 0:01:30.9]} 29... Qe1 {[%clk 0:02:11.1]} 30. Rxa3 {[%clk 0:01:26.6]}
30... Re2 {[%clk 0:02:01.1]} 31. Qc3+ {[%clk 0:01:17.2]} 31... Qxc3 {[%clk
0:02:00.3]} 32. Rxc3 {[%clk 0:01:18.1]} 32... Rxa2 {[%clk 0:02:00.2]} 33. b5
{[%clk 0:01:17.4]} 33... Re6 {[%clk 0:01:58.6]} 34. g4 {[%clk 0:00:54]} 34...
Ree2 {[%clk 0:01:55.1]} 35. Rg3 {[%clk 0:00:53.3]} 35... Kf6 {[%clk 0:01:53.4]}
36. bxc6 {[%clk 0:00:50.5]} 36... bxc6 {[%clk 0:01:53.3]} 37. g5+ {[%clk
0:00:49.9]} 37... Kg7 {[%clk 0:01:52.9]} 38. h4 {[%clk 0:00:50.3]} 38... Rf2
{[%clk 0:01:52.2]} 39. Kh3 {[%clk 0:00:50]} 39... Rxf4 {[%clk 0:01:49.9]} 40.
Bxc6 {[%clk 0:00:47.2]} 40... Rd2 {[%clk 0:01:45.4]} 41. Bd5 {[%clk 0:00:47.1]}
41... Rdd4 {[%clk 0:01:45.6]} 42. Ra3 {[%clk 0:00:29.5]} 42... Rxh4+ {[%clk
0:01:45.4]} 43. Kg3 {[%clk 0:00:30]} 43... Rdg4+ {[%clk 0:01:45.5]} 44. Kf3
{[%clk 0:00:30.6]} 44... Rh3+ {[%clk 0:01:45.6]} 0-1

[Event "Early-Titled-Tuesday-Blitz-May-28-2024"]
[Site "Chess.com"]
[Date "2024.05.28"]
[Round "3"]
[White "ClauAmura"]
[Black "zurzan"]
[Result "1-0"]
[WhiteElo "2411"]
[BlackElo "2144"]
[TimeControl "180+1"]
[EndTime "8:27:19 PDT"]
[Termination "ClauAmura won by resignation"]

1. d4 {[%clk 0:03:00.9]} 1... Nf6 {[%clk 0:02:59]} 2. Bg5 {[%clk 0:02:59.6]}
2... g6 {[%clk 0:02:59.9]} 3. Bxf6 {[%clk 0:02:59.4]} 3... exf6 {[%clk
0:02:59.6]} 4. e3 {[%clk 0:02:57.7]} 4... d5 {[%clk 0:02:59.3]} 5. c4 {[%clk
0:02:57.3]} 5... c6 {[%clk 0:02:58.6]} 6. Nc3 {[%clk 0:02:57.8]} 6... Bd6 {[%clk
0:02:56.6]} 7. cxd5 {[%clk 0:02:58.2]} 7... cxd5 {[%clk 0:02:56]} 8. g3 {[%clk
0:02:58.4]} 8... O-O {[%clk 0:02:53]} 9. Bg2 {[%clk 0:02:58.9]} 9... Be6 {[%clk
0:02:52.8]} 10. Nge2 {[%clk 0:02:58.5]} 10... Nc6 {[%clk 0:02:52.6]} 11. O-O
{[%clk 0:02:57.3]} 11... a6 {[%clk 0:02:51.4]} 12. a3 {[%clk 0:02:57]} 12... Rc8
{[%clk 0:02:51.4]} 13. Nf4 {[%clk 0:02:53.1]} 13... Bxf4 {[%clk 0:02:49.9]} 14.
gxf4 {[%clk 0:02:52.7]} 14... Qd7 {[%clk 0:02:34.8]} 15. Na4 {[%clk 0:02:43.3]}
15... Bh3 {[%clk 0:02:14.2]} 16. Nb6 {[%clk 0:02:38.3]} 16... Qf5 {[%clk
0:02:00.3]} 17. Nxc8 {[%clk 0:02:37.4]} 17... Rxc8 {[%clk 0:01:57.3]} 18. Qf3
{[%clk 0:02:37.1]} 18... Bxg2 {[%clk 0:01:53.8]} 19. Kxg2 {[%clk 0:02:37.1]}
19... Na5 {[%clk 0:01:44.6]} 20. Rac1 {[%clk 0:02:33.9]} 20... Nc4 {[%clk
0:01:33.6]} 21. Qe2 {[%clk 0:02:12.2]} 21... Qe4+ {[%clk 0:01:23.6]} 22. Kg1
{[%clk 0:02:10.8]} 22... Rc6 {[%clk 0:01:11.7]} 23. b3 {[%clk 0:02:10]} 23...
Nxa3 {[%clk 0:01:09.4]} 24. Rxc6 {[%clk 0:02:08.8]} 24... bxc6 {[%clk
0:01:09.4]} 25. Qxa6 {[%clk 0:02:00.6]} 25... Qf3 {[%clk 0:01:01.1]} 26. Qc8+
{[%clk 0:01:55.9]} 26... Kg7 {[%clk 0:00:59.8]} 27. Rc1 {[%clk 0:01:55.1]} 27...
f5 {[%clk 0:00:55.6]} 28. Qxc6 {[%clk 0:01:48.7]} 28... Qg4+ {[%clk 0:00:54.7]}
29. Kf1 {[%clk 0:01:48.7]} 29... Qh3+ {[%clk 0:00:50.8]} 30. Ke2 {[%clk
0:01:48.6]} 30... Qh5+ {[%clk 0:00:42.8]} 31. Kd3 {[%clk 0:01:43.5]} 31... Qxh2
{[%clk 0:00:37.9]} 32. Qxd5 {[%clk 0:01:29.4]} 32... Qxf2 {[%clk 0:00:37.3]} 33.
Qe5+ {[%clk 0:01:28.9]} 33... f6 {[%clk 0:00:30.3]} 34. Qe7+ {[%clk 0:01:26.1]}
1-0

[Event "Early-Titled-Tuesday-Blitz-May-28-2024"]
[Site "Chess.com"]
[Date "2024.05.28"]
[Round "3"]
[White "frenchpin"]
[Black "Stanbad1"]
[Result "0-1"]
[WhiteElo "2448"]
[BlackElo "2636"]
[TimeControl "180+1"]
[EndTime "8:27:20 PDT"]
[Termination "Stanbad1 won on time"]

1. c4 {[%clk 0:03:00.9]} 1... Nf6 {[%clk 0:02:59.7]} 2. d4 {[%clk 0:02:55.3]}
2... g6 {[%clk 0:02:55.7]} 3. h4 {[%clk 0:02:46.9]} 3... c5 {[%clk 0:02:54.9]}
4. d5 {[%clk 0:02:35.7]} 4... b5 {[%clk 0:02:52.8]} 5. Nd2 {[%clk 0:02:13.9]}
5... d6 {[%clk 0:02:50.2]} 6. e4 {[%clk 0:02:11.9]} 6... b4 {[%clk 0:02:50.1]}
7. Be2 {[%clk 0:02:09.4]} 7... Bg7 {[%clk 0:02:48.2]} 8. h5 {[%clk 0:02:08.3]}
8... gxh5 {[%clk 0:02:48]} 9. Bxh5 {[%clk 0:02:06.1]} 9... a5 {[%clk 0:02:48.6]}
10. Bf3 {[%clk 0:01:58.4]} 10... Nbd7 {[%clk 0:02:47.6]} 11. Nf1 {[%clk
0:01:51.1]} 11... Ne5 {[%clk 0:02:46.8]} 12. Qe2 {[%clk 0:01:38.7]} 12... h5
{[%clk 0:02:44.6]} 13. Ne3 {[%clk 0:01:34.4]} 13... Nxf3+ {[%clk 0:02:41.8]} 14.
Qxf3 {[%clk 0:01:33.3]} 14... a4 {[%clk 0:02:40.8]} 15. Nf5 {[%clk 0:01:27.1]}
15... Bxf5 {[%clk 0:02:38.5]} 16. Qxf5 {[%clk 0:01:28]} 16... a3 {[%clk
0:02:38.5]} 17. bxa3 {[%clk 0:01:11.6]} 17... Nxe4 {[%clk 0:02:34.4]} 18. Rb1
{[%clk 0:01:02.7]} 18... Nc3 {[%clk 0:02:34.3]} 19. Rb3 {[%clk 0:01:01]} 19...
Nxa2 {[%clk 0:02:33.6]} 20. Bg5 {[%clk 0:00:48.2]} 20... Rxa3 {[%clk 0:02:24.1]}
21. Rxa3 {[%clk 0:00:43.5]} 21... bxa3 {[%clk 0:02:25]} 22. Nf3 {[%clk
0:00:33.4]} 22... Nb4 {[%clk 0:02:22.5]} 23. O-O {[%clk 0:00:31.6]} 23... a2
{[%clk 0:02:22.5]} 24. Bd2 {[%clk 0:00:17.7]} 24... Qd7 {[%clk 0:02:21.6]} 25.
Qf4 {[%clk 0:00:15.3]} 25... Qg4 {[%clk 0:02:20]} 26. Qe3 {[%clk 0:00:11.1]}
26... O-O {[%clk 0:02:15.6]} 27. Qa3 {[%clk 0:00:08.6]} 27... a1=Q {[%clk
0:02:14.6]} 28. Rxa1 {[%clk 0:00:07.2]} 28... Nc2 {[%clk 0:02:15.2]} 29. Qd3
{[%clk 0:00:02.5]} 29... Nxa1 {[%clk 0:02:15.2]} 30. Ng5 {[%clk 0:00:03.1]}
30... f5 {[%clk 0:02:10.9]} 31. Ne6 {[%clk 0:00:03]} 31... Qe4 {[%clk
0:02:09.5]} 32. Qg3 {[%clk 0:00:01.7]} 32... Qe5 {[%clk 0:02:07.4]} 33. Qxg7+
{[%clk 0:00:01]} 33... Qxg7 {[%clk 0:02:07]} 34. Nxg7 {[%clk 0:00:01.6]} 34...
Kxg7 {[%clk 0:02:06.6]} 35. Bc3+ {[%clk 0:00:02.3]} 35... Kg6 {[%clk 0:02:07]}
36. Bxa1 {[%clk 0:00:03.2]} 36... f4 {[%clk 0:02:07.5]} 37. Bc3 {[%clk
0:00:02.7]} 37... f3 {[%clk 0:02:07.6]} 38. gxf3 {[%clk 0:00:02.3]} 38... Rxf3
{[%clk 0:02:08.5]} 39. Bd2 {[%clk 0:00:02.3]} 39... Rd3 {[%clk 0:02:08.6]} 40.
Be3 {[%clk 0:00:01]} 40... Rc3 {[%clk 0:02:08.5]} 41. Kg2 {[%clk 0:00:01.4]}
41... Rxc4 {[%clk 0:02:09.4]} 42. Kf3 {[%clk 0:00:01.5]} 42... Kf5 {[%clk
0:02:10.3]} 43. Ke2 {[%clk 0:00:01.6]} 43... Re4 {[%clk 0:02:10.4]} 44. Kd3
{[%clk 0:00:01.2]} 44... Rxe3+ {[%clk 0:02:11.3]} 45. Kxe3 {[%clk 0:00:01.1]}
45... h4 {[%clk 0:02:10.9]} 0-1

[Event "Early-Titled-Tuesday-Blitz-May-28-2024"]
[Site "Chess.com"]
[Date "2024.05.28"]
[Round "3"]
[White "MNyuyu"]
[Black "ExtremeLearner"]
[Result "1-0"]
[WhiteElo "2308"]
[BlackElo "2479"]
[TimeControl "180+1"]
[EndTime "8:27:21 PDT"]
[Termination "MNyuyu won by resignation"]

1. d4 {[%clk 0:03:00.9]} 1... Nf6 {[%clk 0:02:59.7]} 2. Nf3 {[%clk 0:03:01.2]}
2... g6 {[%clk 0:02:59.6]} 3. c4 {[%clk 0:03:00.2]} 3... Bg7 {[%clk 0:02:59.7]}
4. Nc3 {[%clk 0:03:00.6]} 4... O-O {[%clk 0:03:00.6]} 5. e4 {[%clk 0:03:00.4]}
5... d6 {[%clk 0:02:56.6]} 6. Be2 {[%clk 0:02:59.6]} 6... e5 {[%clk 0:02:25.1]}
7. O-O {[%clk 0:02:59.5]} 7... Bg4 {[%clk 0:02:15.7]} 8. Be3 {[%clk 0:02:54.3]}
8... Nc6 {[%clk 0:01:39.3]} 9. d5 {[%clk 0:02:45.5]} 9... Bxf3 {[%clk
0:01:34.1]} 10. Bxf3 {[%clk 0:02:43.6]} 10... Nd4 {[%clk 0:01:30.9]} 11. Bxd4
{[%clk 0:02:42.4]} 11... exd4 {[%clk 0:01:31.8]} 12. Qxd4 {[%clk 0:02:42.5]}
12... Nd7 {[%clk 0:01:29.5]} 13. Qd1 {[%clk 0:02:39.2]} 13... Bxc3 {[%clk
0:01:28.9]} 14. bxc3 {[%clk 0:02:38.8]} 14... Qf6 {[%clk 0:01:28.9]} 15. Qd2
{[%clk 0:02:34.1]} 15... Rfe8 {[%clk 0:01:23.9]} 16. Rab1 {[%clk 0:02:32.4]}
16... Nb6 {[%clk 0:01:20.7]} 17. Qd4 {[%clk 0:02:20.7]} 17... Qg5 {[%clk
0:01:04.6]} 18. c5 {[%clk 0:02:15.1]} 18... Nd7 {[%clk 0:00:58.8]} 19. cxd6
{[%clk 0:02:12.3]} 19... cxd6 {[%clk 0:00:59.7]} 20. Rxb7 {[%clk 0:02:08.3]}
20... Nc5 {[%clk 0:00:55.4]} 21. Rb2 {[%clk 0:01:56.3]} 21... h5 {[%clk
0:00:51]} 22. Rfb1 {[%clk 0:01:53.6]} 22... h4 {[%clk 0:00:47.6]} 23. h3 {[%clk
0:01:53.7]} 23... Qf4 {[%clk 0:00:47.1]} 24. Rb4 {[%clk 0:01:41.9]} 24... Rac8
{[%clk 0:00:41]} 25. a4 {[%clk 0:01:24.4]} 25... Nd7 {[%clk 0:00:38.8]} 26. Bg4
{[%clk 0:01:12]} 26... Rc7 {[%clk 0:00:27.1]} 27. Bxd7 {[%clk 0:01:10.9]} 27...
Rxd7 {[%clk 0:00:28]} 28. Rb8 {[%clk 0:01:06.4]} 28... Rxb8 {[%clk 0:00:25.3]}
29. Rxb8+ {[%clk 0:01:05.2]} 1-0